[Event "*** Titled Tuesday 3|2 Blitz"]
[Site "Chess.com"]
[Date "2015.04.07"]
[Round "1"]
[White "pKiLz5Rn9b"]
[Black "AnastasiaProtopopova"]
[Result "1/2-1/2"]
[WhiteElo "2312"]
[BlackElo "2098"]
[TimeControl "180+2"]
[EndTime "11:12:11 PDT"]
[Termination "Game drawn by stalemate"]

1. e4 {[%clk 0:02:58.9]} 1... e6 {[%clk 0:03:00.6]} 2. d4 {[%clk 0:02:59.8]}
2... d5 {[%clk 0:03:01]} 3. Nd2 {[%clk 0:03:01]} 3... Nc6 {[%clk 0:02:59.6]} 4.
Ngf3 {[%clk 0:03:01.8]} 4... Nf6 {[%clk 0:03:00.3]} 5. e5 {[%clk 0:03:03.2]}
5... Nd7 {[%clk 0:02:59.2]} 6. Be2 {[%clk 0:03:04.6]} 6... f6 {[%clk 0:02:55.6]}
7. exf6 {[%clk 0:03:05.2]} 7... Qxf6 {[%clk 0:02:50.7]} 8. Nf1 {[%clk
0:03:06.3]} 8... Bd6 {[%clk 0:02:51.4]} 9. Ne3 {[%clk 0:03:07.1]} 9... O-O
{[%clk 0:02:52.7]} 10. c4 {[%clk 0:03:03.6]} 10... dxc4 {[%clk 0:02:13.7]} 11.
O-O {[%clk 0:02:55.7]} 11... Nb6 {[%clk 0:01:59.1]} 12. Nxc4 {[%clk 0:02:56.2]}
12... e5 {[%clk 0:01:49.8]} 13. dxe5 {[%clk 0:02:51.6]} 13... Nxe5 {[%clk
0:01:35.9]} 14. Ncxe5 {[%clk 0:02:42.8]} 14... Bxe5 {[%clk 0:01:34.4]} 15. Nxe5
{[%clk 0:02:43.9]} 15... Qxe5 {[%clk 0:01:34.9]} 16. Be3 {[%clk 0:02:44.7]}
16... Qxb2 {[%clk 0:01:34.1]} 17. Rc1 {[%clk 0:02:08.1]} 17... c6 {[%clk
0:01:25.1]} 18. Bc5 {[%clk 0:01:46.5]} 18... Re8 {[%clk 0:01:18.8]} 19. Bd3
{[%clk 0:01:44.4]} 19... Qf6 {[%clk 0:01:06.6]} 20. Bd4 {[%clk 0:01:37.8]} 20...
Qf7 {[%clk 0:01:02.2]} 21. a4 {[%clk 0:01:27.6]} 21... Be6 {[%clk 0:01:00.6]}
22. a5 {[%clk 0:01:28.5]} 22... Nd5 {[%clk 0:01:00]} 23. a6 {[%clk 0:01:28.4]}
23... Rad8 {[%clk 0:00:52.8]} 24. Qa4 {[%clk 0:00:55.5]} 24... Nf4 {[%clk
0:00:42.9]} 25. Bc4 {[%clk 0:00:36]} 25... Rxd4 {[%clk 0:00:39.4]} 26. Bxe6
{[%clk 0:00:30.4]} 26... Nxe6 {[%clk 0:00:39.3]} 27. Qb3 {[%clk 0:00:26.6]}
27... bxa6 {[%clk 0:00:37.2]} 28. Rxc6 {[%clk 0:00:27]} 28... Rdd8 {[%clk
0:00:31.8]} 29. Rxa6 {[%clk 0:00:21.9]} 29... Nd4 {[%clk 0:00:31.1]} 30. Qxf7+
{[%clk 0:00:22.6]} 30... Kxf7 {[%clk 0:00:31.8]} 31. Rxa7+ {[%clk 0:00:24.1]}
31... Re7 {[%clk 0:00:33]} 32. Ra4 {[%clk 0:00:25.2]} 32... Ne6 {[%clk
0:00:29.2]} 33. g3 {[%clk 0:00:25.3]} 33... g6 {[%clk 0:00:29.7]} 34. h4 {[%clk
0:00:26.3]} 34... h5 {[%clk 0:00:28.8]} 35. Kg2 {[%clk 0:00:27.6]} 35... Red7
{[%clk 0:00:29.6]} 36. Re1 {[%clk 0:00:27.3]} 36... Rd1 {[%clk 0:00:26.9]} 37.
Re3 {[%clk 0:00:26.4]} 37... R1d3 {[%clk 0:00:25.3]} 38. Re1 {[%clk 0:00:25.1]}
38... R8d7 {[%clk 0:00:22.4]} 39. Rae4 {[%clk 0:00:21.6]} 39... Ng7 {[%clk
0:00:21.1]} 40. Ra4 {[%clk 0:00:18.5]} 40... Nf5 {[%clk 0:00:21.5]} 41. Rb1
{[%clk 0:00:19.2]} 41... Rd1 {[%clk 0:00:21]} 42. Rb6 {[%clk 0:00:20]} 42...
R1d6 {[%clk 0:00:21.1]} 43. Rb5 {[%clk 0:00:20.3]} 43... Rd4 {[%clk 0:00:20.2]}
44. Ra6 {[%clk 0:00:20.7]} 44... Rd2 {[%clk 0:00:19.2]} 45. Ra4 {[%clk
0:00:17.4]} 45... Ne3+ {[%clk 0:00:17.9]} 46. Kf3 {[%clk 0:00:18.2]} 46... Nf5
{[%clk 0:00:18.2]} 47. Kg2 {[%clk 0:00:17.5]} 47... Re7 {[%clk 0:00:18.9]} 48.
Rf4 {[%clk 0:00:17.4]} 48... Kg7 {[%clk 0:00:19.2]} 49. Rb6 {[%clk 0:00:17.9]}
49... Ree2 {[%clk 0:00:19.1]} 50. Rb7+ {[%clk 0:00:18.7]} 50... Kh6 {[%clk
0:00:20.3]} 51. Rb6 {[%clk 0:00:18.2]} 51... Ne3+ {[%clk 0:00:20.6]} 52. Kg1
{[%clk 0:00:17.5]} 52... Re1+ {[%clk 0:00:20.3]} 53. Kh2 {[%clk 0:00:18.9]}
53... Ng4+ {[%clk 0:00:21.8]} 54. Kg2 {[%clk 0:00:20.4]} 54... Ree2 {[%clk
0:00:22.7]} 55. Rc6 {[%clk 0:00:19.2]} 55... Rxf2+ {[%clk 0:00:23.3]} 56. Rxf2
{[%clk 0:00:19.9]} 56... Rxf2+ {[%clk 0:00:25]} 57. Kg1 {[%clk 0:00:21.3]} 57...
Rf3 {[%clk 0:00:25.8]} 58. Kg2 {[%clk 0:00:22.5]} 58... Rd3 {[%clk 0:00:25.9]}
59. Ra6 {[%clk 0:00:23]} 59... Ne3+ {[%clk 0:00:26.4]} 60. Kf2 {[%clk
0:00:21.7]} 60... Nf5 {[%clk 0:00:27.6]} 61. Rf6 {[%clk 0:00:19.5]} 61... Kg7
{[%clk 0:00:22]} 62. Ra6 {[%clk 0:00:19.5]} 62... Rxg3 {[%clk 0:00:21.7]} 63.
Ra7+ {[%clk 0:00:20.6]} 63... Kh6 {[%clk 0:00:22.8]} 64. Kf1 {[%clk 0:00:22]}
64... Nxh4 {[%clk 0:00:22]} 65. Kf2 {[%clk 0:00:23.4]} 65... Rf3+ {[%clk
0:00:22.6]} 66. Kg1 {[%clk 0:00:24.4]} 66... Rf5 {[%clk 0:00:23.1]} 67. Kh2
{[%clk 0:00:25.6]} 67... Kg5 {[%clk 0:00:23.3]} 68. Kh1 {[%clk 0:00:26]} 68...
Nf3 {[%clk 0:00:23.7]} 69. Kg2 {[%clk 0:00:26.5]} 69... h4 {[%clk 0:00:24.3]}
70. Ra4 {[%clk 0:00:27.3]} 70... Ne5 {[%clk 0:00:22.3]} 71. Kh2 {[%clk
0:00:26.4]} 71... Kh5 {[%clk 0:00:23.2]} 72. Ra8 {[%clk 0:00:26]} 72... Rf2+
{[%clk 0:00:22.3]} 73. Kg1 {[%clk 0:00:27]} 73... Rc2 {[%clk 0:00:22]} 74. Kh1
{[%clk 0:00:27.6]} 74... g5 {[%clk 0:00:20.3]} 75. Rh8+ {[%clk 0:00:25.3]} 75...
Kg4 {[%clk 0:00:20.2]} 76. Rf8 {[%clk 0:00:26]} 76... Nf3 {[%clk 0:00:19]} 77.
Rf4+ {[%clk 0:00:25.5]} 77... Kg3 {[%clk 0:00:14.9]} 78. Rg4+ {[%clk 0:00:24.4]}
78... Kh3 {[%clk 0:00:09.5]} 79. Rg3+ {[%clk 0:00:24.6]} 79... Kxg3 {[%clk
0:00:07.5]} 1/2-1/2

[Event "*** Titled Tuesday 3|2 Blitz"]
[Site "Chess.com"]
[Date "2015.04.07"]
[Round "1"]
[White "AlmirDzhumaev"]
[Black "petrpalachev"]
[Result "1/2-1/2"]
[WhiteElo "2108"]
[BlackElo "2435"]
[TimeControl "180+2"]
[EndTime "11:13:28 PDT"]
[Termination "Game drawn by agreement"]

1. e4 {[%clk 0:03:01.3]} 1... c6 {[%clk 0:02:55.5]} 2. d4 {[%clk 0:02:58.6]}
2... d5 {[%clk 0:02:57.4]} 3. exd5 {[%clk 0:03:00]} 3... cxd5 {[%clk 0:02:58.2]}
4. c4 {[%clk 0:03:01.9]} 4... Nf6 {[%clk 0:02:59]} 5. Nc3 {[%clk 0:03:03.8]}
5... Nc6 {[%clk 0:03:00.6]} 6. Nf3 {[%clk 0:03:04.9]} 6... Bg4 {[%clk
0:02:57.9]} 7. Be2 {[%clk 0:03:06.1]} 7... e6 {[%clk 0:02:56.3]} 8. c5 {[%clk
0:03:06.8]} 8... Be7 {[%clk 0:02:56.4]} 9. h3 {[%clk 0:03:07.3]} 9... Bh5 {[%clk
0:02:56.9]} 10. Bf4 {[%clk 0:03:07.1]} 10... O-O {[%clk 0:02:57.3]} 11. a3
{[%clk 0:03:07.8]} 11... Ne4 {[%clk 0:02:53.6]} 12. Rc1 {[%clk 0:03:03.6]} 12...
a5 {[%clk 0:02:39.8]} 13. Na4 {[%clk 0:03:03.7]} 13... f5 {[%clk 0:02:26.3]} 14.
Nb6 {[%clk 0:02:59.5]} 14... Ra7 {[%clk 0:02:27.2]} 15. Ne5 {[%clk 0:03:00.9]}
15... Bxe2 {[%clk 0:02:26.7]} 16. Nxc6 {[%clk 0:02:50]} 16... Bxd1 {[%clk
0:02:13]} 17. Nxd8 {[%clk 0:02:50.6]} 17... Bxd8 {[%clk 0:02:10.7]} 18. Rxd1
{[%clk 0:02:51.3]} 18... Bxb6 {[%clk 0:02:11.7]} 19. cxb6 {[%clk 0:02:52.3]}
19... Raa8 {[%clk 0:02:12.1]} 20. f3 {[%clk 0:02:53.5]} 20... Nf6 {[%clk
0:02:09.8]} 21. Rc1 {[%clk 0:02:52.5]} 21... Rfc8 {[%clk 0:02:05.6]} 22. Kd2
{[%clk 0:02:49]} 22... Kf7 {[%clk 0:02:03.9]} 23. Rc7+ {[%clk 0:02:48.3]} 23...
Rxc7 {[%clk 0:02:05]} 24. bxc7 {[%clk 0:02:49]} 24... Ke7 {[%clk 0:02:00.7]} 25.
Rc1 {[%clk 0:02:49.6]} 25... Rc8 {[%clk 0:02:01.6]} 26. Rc5 {[%clk 0:02:49.6]}
26... Ne8 {[%clk 0:01:39.6]} 27. Rxa5 {[%clk 0:02:45.4]} 27... Kd7 {[%clk
0:01:39.7]} 28. Rb5 {[%clk 0:02:39.3]} 28... Kc6 {[%clk 0:01:37.3]} 29. Rc5+
{[%clk 0:02:40.7]} 29... Kd7 {[%clk 0:01:36.9]} 30. Rb5 {[%clk 0:02:42.1]} 30...
Kc6 {[%clk 0:01:37.6]} 31. Rc5+ {[%clk 0:02:27.7]} 31... Kd7 {[%clk 0:01:38.5]}
32. Be5 {[%clk 0:02:29.2]} 32... g5 {[%clk 0:01:26.2]} 33. Rb5 {[%clk
0:02:27.8]} 33... Kc6 {[%clk 0:01:26.5]} 34. Rc5+ {[%clk 0:02:24.6]} 34... Kd7
{[%clk 0:01:27.2]} 35. g4 {[%clk 0:02:19.7]} 35... b6 {[%clk 0:01:12.6]} 36. Rb5
{[%clk 0:02:11.4]} 36... fxg4 {[%clk 0:01:13]} 37. hxg4 {[%clk 0:02:10.9]} 37...
Kc6 {[%clk 0:01:14.4]} 38. Rb3 {[%clk 0:02:10.2]} 38... Kb7 {[%clk 0:00:52.5]}
39. Re3 {[%clk 0:02:07.7]} 39... Kc6 {[%clk 0:00:45.3]} 40. Bg3 {[%clk
0:02:07.6]} 40... Kd7 {[%clk 0:00:44.9]} 41. Re1 {[%clk 0:02:08.7]} 41... Nxc7
{[%clk 0:00:44.4]} 42. Rh1 {[%clk 0:02:09.4]} 42... Nb5 {[%clk 0:00:35.1]} 43.
Rxh7+ {[%clk 0:02:09.9]} 43... Kc6 {[%clk 0:00:36.8]} 44. Be5 {[%clk 0:02:10]}
44... Rf8 {[%clk 0:00:37]} 45. a4 {[%clk 0:02:09.1]} 45... Nd6 {[%clk
0:00:35.4]} 46. Ke2 {[%clk 0:02:07]} 46... Ra8 {[%clk 0:00:09.2]} 47. b3 {[%clk
0:02:04.1]} 47... b5 {[%clk 0:00:09.8]} 48. axb5+ {[%clk 0:01:56.2]} 48... Nxb5
{[%clk 0:00:10.4]} 49. Re7 {[%clk 0:01:55.7]} 49... Ra2+ {[%clk 0:00:09.6]} 50.
Ke3 {[%clk 0:01:54.9]} 50... Rb2 {[%clk 0:00:10.6]} 51. Rxe6+ {[%clk 0:01:55.6]}
51... Kd7 {[%clk 0:00:11.7]} 52. Rg6 {[%clk 0:01:54.3]} 52... Rxb3+ {[%clk
0:00:12.9]} 53. Kf2 {[%clk 0:01:55.8]} 53... Rd3 {[%clk 0:00:13.1]} 54. Ke2
{[%clk 0:01:52.7]} 54... Ra3 {[%clk 0:00:08.4]} 55. Rxg5 {[%clk 0:01:53.7]}
55... Ra4 {[%clk 0:00:07.7]} 56. Ke3 {[%clk 0:01:52.7]} 56... Ra3+ {[%clk
0:00:08.4]} 57. Kf2 {[%clk 0:01:50.4]} 57... Ra4 {[%clk 0:00:08.7]} 58. Bh8
{[%clk 0:01:48.6]} 58... Kd6 {[%clk 0:00:09.1]} 59. Be5+ {[%clk 0:01:47.7]}
59... Kd7 {[%clk 0:00:10.1]} 60. Rg7+ {[%clk 0:01:48.8]} 60... Ke6 {[%clk
0:00:10.7]} 61. Rg6+ {[%clk 0:01:49.6]} 61... Kd7 {[%clk 0:00:11.6]} 62. f4
{[%clk 0:01:50.4]} 62... Nxd4 {[%clk 0:00:12.4]} 63. Rd6+ {[%clk 0:01:51.3]}
63... Ke7 {[%clk 0:00:12.9]} 64. Rxd5 {[%clk 0:01:52.7]} 64... Ne6 {[%clk
0:00:13.5]} 65. Ke3 {[%clk 0:01:50.8]} 65... Ra3+ {[%clk 0:00:12.8]} 66. Rd3
{[%clk 0:01:51.8]} 66... Ra4 {[%clk 0:00:13.9]} 67. g5 {[%clk 0:01:51.6]} 67...
Kf7 {[%clk 0:00:11.7]} 68. Bf6 {[%clk 0:01:52.4]} 68... Nxf4 {[%clk 0:00:11.1]}
69. Rd7+ {[%clk 0:01:53.3]} 69... Ke6 {[%clk 0:00:11.5]} 70. Re7+ {[%clk
0:01:54.1]} 70... Kf5 {[%clk 0:00:12]} 71. Re5+ {[%clk 0:01:54.2]} 71... Kg6
{[%clk 0:00:13.3]} 72. Rc5 {[%clk 0:01:54.3]} 72... Ne6 {[%clk 0:00:12]} 73. Re5
{[%clk 0:01:55.1]} 73... Nf4 {[%clk 0:00:12.3]} 74. Kf3 {[%clk 0:01:54.9]} 74...
Nh5 {[%clk 0:00:11.1]} 75. Bd8 {[%clk 0:01:55.1]} 75... Ng7 {[%clk 0:00:11.8]}
76. Rd5 {[%clk 0:01:55.8]} 76... Ne6 {[%clk 0:00:12.1]} 77. Bf6 {[%clk
0:01:54.3]} 77... Ra3+ {[%clk 0:00:10.8]} 78. Ke4 {[%clk 0:01:53.4]} 78... Ra4+
{[%clk 0:00:12.1]} 79. Ke3 {[%clk 0:01:54]} 79... Nf4 {[%clk 0:00:11.5]} 80. Rb5
{[%clk 0:01:53.5]} 80... Ne6 {[%clk 0:00:11.1]} 81. Kd3 {[%clk 0:01:52.5]} 81...
Rg4 {[%clk 0:00:10.3]} 82. Re5 {[%clk 0:01:50.2]} 82... Kf7 {[%clk 0:00:09]} 83.
Ke3 {[%clk 0:01:49.4]} 83... Ra4 {[%clk 0:00:08.2]} 84. Kf3 {[%clk 0:01:50.4]}
84... Rc4 {[%clk 0:00:06.6]} 85. Rf5 {[%clk 0:01:50.5]} 85... Kg6 {[%clk
0:00:07.3]} 86. Re5 {[%clk 0:01:51.9]} 86... Nd4+ {[%clk 0:00:08.4]} 87. Kg3
{[%clk 0:01:50.1]} 87... Nf5+ {[%clk 0:00:09.4]} 88. Kf3 {[%clk 0:01:50.9]}
88... Ra4 {[%clk 0:00:09.8]} 89. Bd8 {[%clk 0:01:50.3]} 89... Ng7 {[%clk
0:00:10.3]} 90. Rd5 {[%clk 0:01:50]} 90... Ne6 {[%clk 0:00:10.6]} 91. Rd6 {[%clk
0:01:48.9]} 91... Kf5 {[%clk 0:00:11.3]} 92. Be7 {[%clk 0:01:45.4]} 92... Ra3+
{[%clk 0:00:08.7]} 93. Ke2 {[%clk 0:01:46.1]} 93... Rb3 {[%clk 0:00:09]} 94.
Rd5+ {[%clk 0:01:46]} 94... Ke4 {[%clk 0:00:07.3]} 95. Rd6 {[%clk 0:01:44]}
95... Nf4+ {[%clk 0:00:08.6]} 96. Kd2 {[%clk 0:01:45.1]} 96... Rb7 {[%clk
0:00:05.1]} 97. Bf6 {[%clk 0:01:43.1]} 97... Kf5 {[%clk 0:00:06.4]} 98. Ke3
{[%clk 0:01:42.7]} 98... Rb3+ {[%clk 0:00:06.7]} 99. Kd4 {[%clk 0:01:43.4]}
99... Ne6+ {[%clk 0:00:07.6]} 100. Kc4 {[%clk 0:01:44.1]} 100... Rg3 {[%clk
0:00:05.8]} 101. Rd5+ {[%clk 0:01:42.1]} 101... Kg6 {[%clk 0:00:06.6]} 102. Re5
{[%clk 0:01:42.7]} 102... Nxg5 {[%clk 0:00:06.6]} 103. Bd8 {[%clk 0:01:43.5]}
103... Nf3 {[%clk 0:00:07.4]} 104. Re6+ {[%clk 0:01:44.4]} 104... Kf5 {[%clk
0:00:08.8]} 105. Rf6+ {[%clk 0:01:45.2]} 105... Ke4 {[%clk 0:00:10.1]} 106. Bc7
{[%clk 0:01:44.4]} 106... Rg5 {[%clk 0:00:06.6]} 107. Rf4+ {[%clk 0:01:39.3]}
107... Ke3 {[%clk 0:00:06.7]} 108. Rf7 {[%clk 0:01:37.9]} 108... Nd2+ {[%clk
0:00:07.7]} 109. Kb4 {[%clk 0:01:37.8]} 109... Rd5 {[%clk 0:00:05.7]} 110. Bb6+
{[%clk 0:01:33.8]} 110... Kd3 {[%clk 0:00:06]} 111. Re7 {[%clk 0:01:33.8]}
111... Ne4 {[%clk 0:00:07]} 112. Re6 {[%clk 0:01:33]} 112... Rd6 {[%clk
0:00:05.9]} 113. Rxd6+ {[%clk 0:01:29.8]} 113... Nxd6 {[%clk 0:00:07.8]} 114.
Bc5 {[%clk 0:01:30.8]} 114... Ne4 {[%clk 0:00:08.9]} 115. Be7 {[%clk 0:01:31.8]}
115... Kd4 {[%clk 0:00:09.6]} 116. Kb3 {[%clk 0:01:32.7]} 116... Kd5 {[%clk
0:00:11.5]} 117. Kc2 {[%clk 0:01:33.9]} 117... Nc5 {[%clk 0:00:13.4]} 118. Bf8
{[%clk 0:01:35.8]} 118... Ne6 {[%clk 0:00:15.2]} 119. Be7 {[%clk 0:01:37]}
119... Ke4 {[%clk 0:00:16.1]} 1/2-1/2

[Event "*** Titled Tuesday 3|2 Blitz"]
[Site "Chess.com"]
[Date "2015.04.07"]
[Round "2"]
[White "SmarterChess"]
[Black "DrHolmes13"]
[Result "0-1"]
[WhiteElo "2083"]
[BlackElo "2230"]
[TimeControl "180+2"]
[EndTime "11:16:39 PDT"]
[Termination "DrHolmes13 won by resignation"]

1. d4 {[%clk 0:03:01.9]} 1... Nf6 {[%clk 0:03:00.2]} 2. Nf3 {[%clk 0:03:01]}
2... g6 {[%clk 0:03:00.8]} 3. Nc3 {[%clk 0:02:59.5]} 3... d5 {[%clk 0:03:01.1]}
4. Bg5 {[%clk 0:03:00.1]} 4... Bg7 {[%clk 0:03:00.8]} 5. Qd2 {[%clk 0:03:00.7]}
5... Ne4 {[%clk 0:02:33.9]} 6. Nxe4 {[%clk 0:02:57.6]} 6... dxe4 {[%clk
0:02:34.6]} 7. Ne5 {[%clk 0:02:54.7]} 7... f6 {[%clk 0:02:34.1]} 8. Bh6 {[%clk
0:02:54.9]} 8... Bxh6 {[%clk 0:02:23.3]} 9. Qxh6 {[%clk 0:02:56.8]} 9... fxe5
{[%clk 0:02:24.1]} 10. O-O-O {[%clk 0:02:56]} 10... Qd5 {[%clk 0:02:17.2]} 11.
Qg7 {[%clk 0:02:46.9]} 11... Rg8 {[%clk 0:02:14.2]} 12. Qxh7 {[%clk 0:02:45.9]}
12... Qxa2 {[%clk 0:02:07.9]} 13. b3 {[%clk 0:02:46.2]} 13... Be6 {[%clk
0:02:06]} 14. d5 {[%clk 0:02:45.6]} 14... Bf7 {[%clk 0:02:05.9]} 15. e3 {[%clk
0:02:41.4]} 15... Nd7 {[%clk 0:01:56.7]} 16. Bb5 {[%clk 0:02:36.1]} 16... Qa1+
{[%clk 0:01:57.3]} 17. Kd2 {[%clk 0:02:36.3]} 17... Qa5+ {[%clk 0:01:58.2]} 18.
c3 {[%clk 0:02:37.2]} 18... Qxb5 {[%clk 0:01:58.3]} 0-1

[Event "*** Titled Tuesday 3|2 Blitz"]
[Site "Chess.com"]
[Date "2015.04.07"]
[Round "2"]
[White "pKiLz5Rn9b"]
[Black "AlmirDzhumaev"]
[Result "1-0"]
[WhiteElo "2316"]
[BlackElo "2103"]
[TimeControl "180+2"]
[EndTime "11:18:00 PDT"]
[Termination "pKiLz5Rn9b won by resignation"]

1. e4 {[%clk 0:03:01.9]} 1... e5 {[%clk 0:03:00.2]} 2. Nf3 {[%clk 0:03:02.7]}
2... Nc6 {[%clk 0:03:01.1]} 3. Bc4 {[%clk 0:03:03.6]} 3... Nf6 {[%clk
0:03:01.7]} 4. d3 {[%clk 0:03:04.7]} 4... Bc5 {[%clk 0:03:02.2]} 5. c3 {[%clk
0:03:06.1]} 5... a6 {[%clk 0:03:03.5]} 6. Nbd2 {[%clk 0:03:06.6]} 6... d6 {[%clk
0:03:04.8]} 7. Bb3 {[%clk 0:03:07.6]} 7... h6 {[%clk 0:03:04.7]} 8. h3 {[%clk
0:03:08.9]} 8... Be6 {[%clk 0:02:59.4]} 9. Nf1 {[%clk 0:03:09.9]} 9... b5 {[%clk
0:02:59]} 10. Ng3 {[%clk 0:03:10.6]} 10... g6 {[%clk 0:02:57.6]} 11. Be3 {[%clk
0:03:03.3]} 11... Ba7 {[%clk 0:02:57.6]} 12. a4 {[%clk 0:03:00]} 12... b4 {[%clk
0:02:56.7]} 13. a5 {[%clk 0:02:55.2]} 13... Rb8 {[%clk 0:02:53.6]} 14. Ba4
{[%clk 0:02:41]} 14... Bxe3 {[%clk 0:02:16.4]} 15. Bxc6+ {[%clk 0:02:39]} 15...
Nd7 {[%clk 0:02:14.6]} 16. fxe3 {[%clk 0:02:38.6]} 16... bxc3 {[%clk 0:02:15.1]}
17. bxc3 {[%clk 0:02:39.6]} 17... O-O {[%clk 0:02:15]} 18. Bxd7 {[%clk
0:02:36.3]} 18... Qxd7 {[%clk 0:02:13.9]} 19. O-O {[%clk 0:02:37.4]} 19... Bxh3
{[%clk 0:02:09.4]} 20. gxh3 {[%clk 0:02:31.4]} 20... Qxh3 {[%clk 0:02:10.4]} 21.
Qe2 {[%clk 0:01:58.6]} 21... Qxg3+ {[%clk 0:02:09.6]} 22. Qg2 {[%clk 0:01:59.6]}
22... Qxg2+ {[%clk 0:02:06]} 23. Kxg2 {[%clk 0:02:01]} 23... Rb2+ {[%clk
0:02:07]} 24. Rf2 {[%clk 0:02:01.4]} 24... Rfb8 {[%clk 0:02:08.1]} 25. Ra3
{[%clk 0:01:55.8]} 25... Kg7 {[%clk 0:02:04.6]} 26. Nd2 {[%clk 0:01:55.1]} 26...
R2b3 {[%clk 0:02:03.7]} 27. Rxb3 {[%clk 0:01:55.2]} 1-0

[Event "*** Titled Tuesday 3|2 Blitz"]
[Site "Chess.com"]
[Date "2015.04.07"]
[Round "2"]
[White "AccioChess"]
[Black "Imre91"]
[Result "0-1"]
[WhiteElo "2211"]
[BlackElo "2555"]
[TimeControl "180+2"]
[EndTime "11:20:07 PDT"]
[Termination "Imre91 won by resignation"]

1. e4 {[%clk 0:02:59.2]} 1... e6 {[%clk 0:02:56.6]} 2. d4 {[%clk 0:02:59.2]}
2... d5 {[%clk 0:02:52]} 3. Nc3 {[%clk 0:02:59.6]} 3... Nf6 {[%clk 0:02:48.6]}
4. e5 {[%clk 0:03:00]} 4... Nfd7 {[%clk 0:02:49.4]} 5. f4 {[%clk 0:03:01.6]}
5... c5 {[%clk 0:02:50.9]} 6. Nf3 {[%clk 0:03:02.5]} 6... Nc6 {[%clk 0:02:52.4]}
7. Be3 {[%clk 0:03:03.1]} 7... a6 {[%clk 0:02:50.6]} 8. Qd2 {[%clk 0:03:03.8]}
8... Be7 {[%clk 0:02:51.1]} 9. O-O-O {[%clk 0:03:04.1]} 9... c4 {[%clk
0:02:51.7]} 10. f5 {[%clk 0:03:01.8]} 10... b5 {[%clk 0:02:51.2]} 11. fxe6
{[%clk 0:03:02.1]} 11... fxe6 {[%clk 0:02:53.1]} 12. Ne2 {[%clk 0:02:59.3]}
12... b4 {[%clk 0:02:52.3]} 13. Nf4 {[%clk 0:02:55.7]} 13... Nf8 {[%clk
0:02:52.8]} 14. h4 {[%clk 0:02:54.2]} 14... Qa5 {[%clk 0:02:53]} 15. Kb1 {[%clk
0:02:54.5]} 15... c3 {[%clk 0:02:51.1]} 16. Qf2 {[%clk 0:02:55]} 16... Bd7
{[%clk 0:02:46.9]} 17. Ng5 {[%clk 0:02:50.9]} 17... h6 {[%clk 0:02:40.2]} 18.
Nf3 {[%clk 0:01:28.2]} 18... b3 {[%clk 0:02:38.1]} 19. cxb3 {[%clk 0:01:27]}
19... c2+ {[%clk 0:02:37.7]} 20. Kxc2 {[%clk 0:01:01.8]} 20... Qxa2 {[%clk
0:02:34.5]} 21. Nd3 {[%clk 0:00:54.8]} 21... Rc8 {[%clk 0:02:32.2]} 22. Kd2
{[%clk 0:00:54.1]} 22... Qxb3 {[%clk 0:02:32.7]} 23. Rc1 {[%clk 0:00:51.6]}
23... Nh7 {[%clk 0:02:27.2]} 24. Be2 {[%clk 0:00:48.9]} 24... O-O {[%clk
0:02:27.1]} 25. Qg3 {[%clk 0:00:48.1]} 25... Kh8 {[%clk 0:02:22.3]} 26. Rhd1
{[%clk 0:00:45.5]} 26... Nb4 {[%clk 0:02:23]} 27. Rxc8 {[%clk 0:00:44.6]} 27...
Rxc8 {[%clk 0:02:24.9]} 28. Rc1 {[%clk 0:00:45]} 28... Rc2+ {[%clk 0:02:23.3]}
29. Rxc2 {[%clk 0:00:37.9]} 29... Qxc2+ {[%clk 0:02:25.2]} 30. Ke1 {[%clk
0:00:39.2]} 30... Nxd3+ {[%clk 0:02:26.2]} 31. Kf1 {[%clk 0:00:37.8]} 31... Nc1
{[%clk 0:02:20.3]} 32. Bxc1 {[%clk 0:00:33.2]} 32... Qxc1+ {[%clk 0:02:19.9]}
33. Kf2 {[%clk 0:00:35.1]} 33... Nf8 {[%clk 0:02:15.7]} 34. Nh2 {[%clk
0:00:28.2]} 34... Qxb2 {[%clk 0:02:13.1]} 0-1

[Event "*** Titled Tuesday 3|2 Blitz"]
[Site "Chess.com"]
[Date "2015.04.07"]
[Round "2"]
[White "kharposh"]
[Black "jup1978"]
[Result "0-1"]
[WhiteElo "2037"]
[BlackElo "2153"]
[TimeControl "180+2"]
[EndTime "11:20:56 PDT"]
[Termination "jup1978 won by resignation"]

1. e4 {[%clk 0:03:01.9]} 1... e6 {[%clk 0:03:00.3]} 2. d4 {[%clk 0:03:00.6]}
2... d5 {[%clk 0:03:01.7]} 3. Nc3 {[%clk 0:03:01.3]} 3... Bb4 {[%clk 0:03:01]}
4. e5 {[%clk 0:03:02.1]} 4... Ne7 {[%clk 0:03:02]} 5. Bd3 {[%clk 0:03:03.4]}
5... b6 {[%clk 0:03:00.2]} 6. a3 {[%clk 0:03:03.8]} 6... Bxc3+ {[%clk
0:03:00.7]} 7. bxc3 {[%clk 0:03:05.7]} 7... Ba6 {[%clk 0:03:02.1]} 8. Nf3 {[%clk
0:03:06.7]} 8... h6 {[%clk 0:03:01]} 9. O-O {[%clk 0:03:07.2]} 9... Qd7 {[%clk
0:03:01.6]} 10. Qe2 {[%clk 0:03:06.5]} 10... Qa4 {[%clk 0:02:57.2]} 11. Bd2
{[%clk 0:03:03.9]} 11... Bc4 {[%clk 0:02:53]} 12. Rfb1 {[%clk 0:02:54.7]} 12...
Nbc6 {[%clk 0:02:51.8]} 13. Qe3 {[%clk 0:02:45.9]} 13... Na5 {[%clk 0:02:48.4]}
14. Rb4 {[%clk 0:02:43.2]} 14... Qc6 {[%clk 0:02:48.9]} 15. a4 {[%clk
0:02:40.8]} 15... O-O {[%clk 0:02:46.4]} 16. Qf4 {[%clk 0:02:38.6]} 16... Bxd3
{[%clk 0:02:33.3]} 17. cxd3 {[%clk 0:02:38]} 17... Ng6 {[%clk 0:02:29.5]} 18.
Qg4 {[%clk 0:02:36.7]} 18... Kh7 {[%clk 0:02:27.2]} 19. h4 {[%clk 0:02:34.5]}
19... f5 {[%clk 0:02:27.7]} 20. exf6 {[%clk 0:02:33.5]} 20... Rxf6 {[%clk
0:02:28]} 21. h5 {[%clk 0:02:34.6]} 21... Ne7 {[%clk 0:02:23.4]} 22. Ne5 {[%clk
0:02:34.6]} 22... Qe8 {[%clk 0:02:24]} 23. Re1 {[%clk 0:02:27.8]} 23... Nac6
{[%clk 0:02:23]} 24. Rb2 {[%clk 0:02:24.1]} 24... Nxe5 {[%clk 0:02:22.4]} 25.
dxe5 {[%clk 0:02:24]} 25... Rf5 {[%clk 0:02:22.5]} 26. c4 {[%clk 0:02:05]} 26...
Qxh5 {[%clk 0:02:21.8]} 27. Qxh5 {[%clk 0:02:04.1]} 27... Rxh5 {[%clk
0:02:23.7]} 28. g4 {[%clk 0:02:03.5]} 28... Rh3 {[%clk 0:02:22.9]} 29. Be3
{[%clk 0:01:59.3]} 29... Rf3 {[%clk 0:02:18.8]} 30. Kg2 {[%clk 0:01:58.4]} 30...
Raf8 {[%clk 0:02:16.6]} 31. a5 {[%clk 0:01:58.6]} 31... Nc6 {[%clk 0:02:10.4]}
32. cxd5 {[%clk 0:01:55]} 32... Nxe5 {[%clk 0:02:06.4]} 33. dxe6 {[%clk
0:01:39.9]} 33... Nxd3 {[%clk 0:02:06.8]} 34. Ree2 {[%clk 0:01:40]} 34... Nxb2
{[%clk 0:02:06.9]} 35. e7 {[%clk 0:01:31.3]} 35... Nc4 {[%clk 0:01:54]} 36.
exf8=Q {[%clk 0:01:28]} 36... Rxf8 {[%clk 0:01:55.9]} 37. axb6 {[%clk
0:01:24.7]} 37... axb6 {[%clk 0:01:57.8]} 38. Bd4 {[%clk 0:01:24.4]} 38... Rf7
{[%clk 0:01:56.1]} 39. Re6 {[%clk 0:01:20.8]} 39... b5 {[%clk 0:01:49.8]} 40.
Rc6 {[%clk 0:01:18.8]} 40... Rd7 {[%clk 0:01:50.3]} 41. Bc3 {[%clk 0:01:16.4]}
41... Kg8 {[%clk 0:01:47.8]} 42. Kg3 {[%clk 0:01:15.3]} 42... Rd3+ {[%clk
0:01:47.4]} 0-1